[Event "*** Titled Tuesday 3|2 Blitz"]
[Site "Chess.com"]
[Date "2016.10.04"]
[Round "2"]
[White "pedromartinez91"]
[Black "bugsbunny444"]
[Result "1-0"]
[WhiteElo "2353"]
[BlackElo "2337"]
[TimeControl "180+2"]
[EndTime "11:22:29 PDT"]
[Termination "pedromartinez91 won by resignation"]

1. Nf3 {[%clk 0:02:06.3]} 1... d5 {[%clk 0:02:59.9]} 2. g3 {[%clk 0:02:06.6]}
2... Nc6 {[%clk 0:03:00.8]} 3. Bg2 {[%clk 0:02:08.5]} 3... e5 {[%clk 0:03:01.9]}
4. c4 {[%clk 0:02:07.2]} 4... d4 {[%clk 0:03:02.7]} 5. d3 {[%clk 0:02:07.7]}
5... Bb4+ {[%clk 0:03:03]} 6. Bd2 {[%clk 0:02:07.6]} 6... a5 {[%clk 0:03:04.4]}
7. O-O {[%clk 0:02:08.1]} 7... Nf6 {[%clk 0:03:05.5]} 8. Bg5 {[%clk 0:02:08.5]}
8... O-O {[%clk 0:02:55.8]} 9. Nbd2 {[%clk 0:02:04.7]} 9... Be7 {[%clk
0:02:47.8]} 10. Rc1 {[%clk 0:01:54.8]} 10... h6 {[%clk 0:02:47.1]} 11. Bxf6
{[%clk 0:01:55.4]} 11... Bxf6 {[%clk 0:02:49]} 12. c5 {[%clk 0:01:56.3]} 12...
Be6 {[%clk 0:02:36]} 13. Qa4 {[%clk 0:01:55.9]} 13... Bd5 {[%clk 0:02:24.3]} 14.
a3 {[%clk 0:01:50.9]} 14... Re8 {[%clk 0:02:21.7]} 15. Ne1 {[%clk 0:01:47.9]}
15... Bg5 {[%clk 0:02:08.9]} 16. Rc2 {[%clk 0:01:29.8]} 16... Bxg2 {[%clk
0:02:03.8]} 17. Kxg2 {[%clk 0:01:30.6]} 17... Bxd2 {[%clk 0:02:03.1]} 18. Rxd2
{[%clk 0:01:31.3]} 18... Qd5+ {[%clk 0:02:04.1]} 19. Nf3 {[%clk 0:01:31.4]}
19... Qxc5 {[%clk 0:02:04.5]} 20. Rc2 {[%clk 0:01:32.6]} 20... Qb6 {[%clk
0:01:54.4]} 21. Rfc1 {[%clk 0:01:29.5]} 21... e4 {[%clk 0:01:42.7]} 22. dxe4
{[%clk 0:01:25.5]} 22... Rxe4 {[%clk 0:01:44.6]} 23. Nd2 {[%clk 0:01:26.6]}
23... Re7 {[%clk 0:01:24.4]} 24. Qc4 {[%clk 0:01:26.9]} 24... Rae8 {[%clk
0:01:22.1]} 25. Nf3 {[%clk 0:01:27.8]} 25... Re4 {[%clk 0:01:10.9]} 26. Qd5
{[%clk 0:01:21.7]} 26... R8e7 {[%clk 0:01:02.9]} 27. Rd1 {[%clk 0:01:20.2]}
27... Rxe2 {[%clk 0:00:53.9]} 28. Rxe2 {[%clk 0:01:12.9]} 28... Rxe2 {[%clk
0:00:54.7]} 29. Nxd4 {[%clk 0:01:12.8]} 29... Nxd4 {[%clk 0:00:51.4]} 30. Rxd4
{[%clk 0:01:13.1]} 30... c6 {[%clk 0:00:33.8]} 31. Qd7 {[%clk 0:00:41.5]} 31...
g5 {[%clk 0:00:15.3]} 32. Rd2 {[%clk 0:00:38.3]} 32... Rxd2 {[%clk 0:00:15]} 33.
Qxd2 {[%clk 0:00:39.1]} 33... Qb5 {[%clk 0:00:16.4]} 34. Qc3 {[%clk 0:00:38.7]}
34... Qd5+ {[%clk 0:00:17.3]} 35. Kg1 {[%clk 0:00:40]} 35... Kh7 {[%clk
0:00:14.4]} 36. Qf6 {[%clk 0:00:39.8]} 36... b5 {[%clk 0:00:07.8]} 37. h4 {[%clk
0:00:39.5]} 37... a4 {[%clk 0:00:08]} 38. hxg5 {[%clk 0:00:37.1]} 38... hxg5
{[%clk 0:00:09.3]} 39. Kh2 {[%clk 0:00:35.6]} 39... Kg8 {[%clk 0:00:09]} 40. Kh3
{[%clk 0:00:34.9]} 40... Kh7 {[%clk 0:00:05.2]} 41. Kg4 {[%clk 0:00:35.9]} 41...
Qe4+ {[%clk 0:00:03.8]} 42. Kxg5 {[%clk 0:00:34.8]} 42... Qd5+ {[%clk
0:00:03.3]} 43. Qf5+ {[%clk 0:00:35.1]} 43... Qxf5+ {[%clk 0:00:04.8]} 44. Kxf5
{[%clk 0:00:35.3]} 44... c5 {[%clk 0:00:06.7]} 45. g4 {[%clk 0:00:34.3]} 45...
Kg7 {[%clk 0:00:07.6]} 46. Ke4 {[%clk 0:00:34.4]} 46... b4 {[%clk 0:00:08.9]}
47. Kd5 {[%clk 0:00:32.2]} 47... bxa3 {[%clk 0:00:10.2]} 48. bxa3 {[%clk
0:00:32.9]} 48... Kg6 {[%clk 0:00:11.6]} 49. f4 {[%clk 0:00:33.8]} 49... Kf6
{[%clk 0:00:11.6]} 50. Kxc5 {[%clk 0:00:34.8]} 50... Ke6 {[%clk 0:00:13]} 51.
Kb4 {[%clk 0:00:35.7]} 51... Kd5 {[%clk 0:00:14.5]} 52. Kxa4 {[%clk 0:00:37.2]}
52... Ke4 {[%clk 0:00:16.4]} 53. Kb4 {[%clk 0:00:38.5]} 53... Kxf4 {[%clk
0:00:18.3]} 54. a4 {[%clk 0:00:40.1]} 54... Kxg4 {[%clk 0:00:20.2]} 55. a5
{[%clk 0:00:41.7]} 55... f5 {[%clk 0:00:22.1]} 56. a6 {[%clk 0:00:43.3]} 56...
f4 {[%clk 0:00:24]} 57. a7 {[%clk 0:00:44.9]} 57... f3 {[%clk 0:00:25.9]} 58.
a8=Q {[%clk 0:00:45.6]} 58... Kg3 {[%clk 0:00:26.9]} 59. Qg8+ {[%clk 0:00:45.5]}
59... Kh2 {[%clk 0:00:27.8]} 60. Qh7+ {[%clk 0:00:46.3]} 60... Kg1 {[%clk
0:00:29]} 61. Qg6+ {[%clk 0:00:47.3]} 61... Kh1 {[%clk 0:00:29.1]} 62. Qh5+
{[%clk 0:00:48.1]} 62... Kg2 {[%clk 0:00:30.8]} 63. Qg4+ {[%clk 0:00:49]} 63...
Kf2 {[%clk 0:00:31.4]} 64. Kc3 {[%clk 0:00:50.1]} 64... Ke2 {[%clk 0:00:32.5]}
65. Qe4+ {[%clk 0:00:51.2]} 1-0

[Event "*** Titled Tuesday 3|2 Blitz"]
[Site "Chess.com"]
[Date "2016.10.04"]
[Round "2"]
[White "APL2001"]
[Black "BellJackson95"]
[Result "1-0"]
[WhiteElo "2423"]
[BlackElo "2337"]
[TimeControl "180+2"]
[EndTime "11:23:03 PDT"]
[Termination "APL2001 won by checkmate"]

1. e4 {[%clk 0:03:01.9]} 1... c5 {[%clk 0:02:55.2]} 2. Nf3 {[%clk 0:03:03]} 2...
d6 {[%clk 0:02:56.1]} 3. d4 {[%clk 0:03:04.2]} 3... cxd4 {[%clk 0:02:58]} 4.
Nxd4 {[%clk 0:03:05.9]} 4... Nf6 {[%clk 0:02:59.5]} 5. Nc3 {[%clk 0:03:07.6]}
5... Nc6 {[%clk 0:03:00.5]} 6. Be2 {[%clk 0:03:08.4]} 6... e6 {[%clk 0:02:53.4]}
7. O-O {[%clk 0:03:08.4]} 7... a6 {[%clk 0:02:53.9]} 8. Be3 {[%clk 0:03:08.9]}
8... Be7 {[%clk 0:02:54.3]} 9. f4 {[%clk 0:03:09.6]} 9... O-O {[%clk 0:02:54.2]}
10. Kh1 {[%clk 0:03:09.1]} 10... Bd7 {[%clk 0:02:54.8]} 11. Qe1 {[%clk
0:03:09.8]} 11... Rc8 {[%clk 0:02:48.9]} 12. Qg3 {[%clk 0:03:09.4]} 12... Nxd4
{[%clk 0:02:33.7]} 13. Bxd4 {[%clk 0:03:09.6]} 13... Bc6 {[%clk 0:02:14.7]} 14.
Rad1 {[%clk 0:03:01.1]} 14... Qc7 {[%clk 0:02:12.1]} 15. Bd3 {[%clk 0:02:56.2]}
15... Rfd8 {[%clk 0:02:02.5]} 16. a3 {[%clk 0:02:27.6]} 16... d5 {[%clk
0:01:45.8]} 17. exd5 {[%clk 0:02:20.7]} 17... Bxd5 {[%clk 0:01:45.6]} 18. Nxd5
{[%clk 0:02:21.6]} 18... Rxd5 {[%clk 0:01:45.5]} 19. Be5 {[%clk 0:02:23.2]}
19... Qb6 {[%clk 0:01:38]} 20. c4 {[%clk 0:01:41.7]} 20... Rdd8 {[%clk
0:01:35.1]} 21. b4 {[%clk 0:01:39.8]} 21... Ne8 {[%clk 0:01:25.5]} 22. c5 {[%clk
0:01:37.8]} 22... Qc6 {[%clk 0:01:24]} 23. Qe3 {[%clk 0:01:28.2]} 23... Nf6
{[%clk 0:01:18.6]} 24. Qh3 {[%clk 0:01:21.6]} 24... g6 {[%clk 0:01:13.4]} 25.
Qh4 {[%clk 0:01:16.1]} 25... Nd5 {[%clk 0:01:11.5]} 26. Qh6 {[%clk 0:01:17.2]}
26... Bf8 {[%clk 0:01:11.1]} 27. Qh3 {[%clk 0:01:12.4]} 27... Bg7 {[%clk
0:01:11]} 28. Be4 {[%clk 0:01:10]} 28... Qe8 {[%clk 0:01:01.3]} 29. Qf3 {[%clk
0:01:06.4]} 29... Qc6 {[%clk 0:00:46.8]} 30. Rd2 {[%clk 0:01:02]} 30... f5
{[%clk 0:00:45.9]} 31. Bc2 {[%clk 0:00:49.4]} 31... Bxe5 {[%clk 0:00:45.8]} 32.
fxe5 {[%clk 0:00:50.8]} 32... b6 {[%clk 0:00:26.8]} 33. cxb6 {[%clk 0:00:41]}
33... Qxb6 {[%clk 0:00:28.7]} 34. Rfd1 {[%clk 0:00:42]} 34... Re8 {[%clk
0:00:22.9]} 35. Bb3 {[%clk 0:00:33.4]} 35... Rc3 {[%clk 0:00:22.7]} 36. Rd3
{[%clk 0:00:35]} 36... Rxd3 {[%clk 0:00:15.1]} 37. Qxd3 {[%clk 0:00:35.6]} 37...
Nf4 {[%clk 0:00:12.8]} 38. Qf3 {[%clk 0:00:30.4]} 38... g5 {[%clk 0:00:09.5]}
39. g3 {[%clk 0:00:31.7]} 39... Ng6 {[%clk 0:00:09.8]} 40. Rd6 {[%clk
0:00:31.2]} 40... Qb5 {[%clk 0:00:08.4]} 41. Bxe6+ {[%clk 0:00:31]} 41... Rxe6
{[%clk 0:00:08.1]} 42. Rxe6 {[%clk 0:00:31.2]} 42... Qc4 {[%clk 0:00:10]} 43.
Rc6 {[%clk 0:00:30.5]} 43... Qa2 {[%clk 0:00:09.2]} 44. Qc3 {[%clk 0:00:26.8]}
44... Qd5+ {[%clk 0:00:08.2]} 45. Kg1 {[%clk 0:00:26.1]} 45... Nxe5 {[%clk
0:00:09.4]} 46. Rc8+ {[%clk 0:00:25.9]} 46... Kf7 {[%clk 0:00:10]} 47. Qc7+
{[%clk 0:00:25.4]} 47... Kg6 {[%clk 0:00:10.2]} 48. Qb6+ {[%clk 0:00:21.9]}
48... Kh5 {[%clk 0:00:09.9]} 49. Qe3 {[%clk 0:00:20.6]} 49... Ng4 {[%clk
0:00:06.4]} 50. Qe2 {[%clk 0:00:20.5]} 50... Qd4+ {[%clk 0:00:06.4]} 51. Kh1
{[%clk 0:00:20.4]} 51... Qa1+ {[%clk 0:00:04.5]} 52. Kg2 {[%clk 0:00:21.5]}
52... Qxa3 {[%clk 0:00:06.4]} 53. Rc7 {[%clk 0:00:21.8]} 53... Kg6 {[%clk
0:00:06.1]} 54. Rc6+ {[%clk 0:00:22.8]} 54... Kg7 {[%clk 0:00:05.8]} 55. Qe7+
{[%clk 0:00:22.9]} 55... Kg8 {[%clk 0:00:06.1]} 56. Rc8# {[%clk 0:00:23.9]} 1-0

[Event "*** Titled Tuesday 3|2 Blitz"]
[Site "Chess.com"]
[Date "2016.10.04"]
[Round "2"]
[White "Tash_Boy"]
[Black "FabianoCaruana"]
[Result "1/2-1/2"]
[WhiteElo "2460"]
[BlackElo "2679"]
[TimeControl "180+2"]
[EndTime "11:23:18 PDT"]
[Termination "Game drawn by repetition"]

1. e4 {[%clk 0:02:49.7]} 1... e5 {[%clk 0:03:00.3]} 2. Nf3 {[%clk 0:02:49.9]}
2... c6 {[%clk 0:02:59.8]} 3. d4 {[%clk 0:02:45.9]} 3... exd4 {[%clk 0:02:57]}
4. Qxd4 {[%clk 0:02:46.2]} 4... d5 {[%clk 0:02:54.3]} 5. Nc3 {[%clk 0:02:46.4]}
5... Nf6 {[%clk 0:02:52.7]} 6. Bg5 {[%clk 0:02:41.5]} 6... Be7 {[%clk
0:02:42.8]} 7. exd5 {[%clk 0:02:25.4]} 7... cxd5 {[%clk 0:02:42.4]} 8. Bb5+
{[%clk 0:02:25]} 8... Nc6 {[%clk 0:02:42.6]} 9. Qa4 {[%clk 0:02:21.5]} 9... O-O
{[%clk 0:02:37.3]} 10. O-O {[%clk 0:02:21.9]} 10... Be6 {[%clk 0:02:23.4]} 11.
Bxc6 {[%clk 0:02:12]} 11... bxc6 {[%clk 0:02:23.9]} 12. Qxc6 {[%clk 0:02:13.5]}
12... Rc8 {[%clk 0:02:23.2]} 13. Qa6 {[%clk 0:02:14.2]} 13... h6 {[%clk
0:02:16.9]} 14. Be3 {[%clk 0:02:11.6]} 14... Ne4 {[%clk 0:02:11]} 15. Bd4 {[%clk
0:02:02.7]} 15... Qc7 {[%clk 0:02:05.5]} 16. Rfe1 {[%clk 0:01:51.9]} 16... Bb4
{[%clk 0:02:05.4]} 17. Re3 {[%clk 0:01:48.8]} 17... Rfd8 {[%clk 0:01:52.6]} 18.
a3 {[%clk 0:01:43.7]} 18... Bxc3 {[%clk 0:01:44.4]} 19. bxc3 {[%clk 0:01:43.6]}
19... Rd6 {[%clk 0:01:44]} 20. Qxa7 {[%clk 0:01:41.5]} 20... Qxa7 {[%clk
0:01:43.6]} 21. Bxa7 {[%clk 0:01:42.2]} 21... Nxc3 {[%clk 0:01:44.1]} 22. Bd4
{[%clk 0:01:23.5]} 22... Na4 {[%clk 0:01:44]} 23. Be5 {[%clk 0:01:19.9]} 23...
Ra6 {[%clk 0:01:40.6]} 24. Nd4 {[%clk 0:01:20.8]} 24... Bd7 {[%clk 0:01:35.8]}
25. h4 {[%clk 0:01:16.6]} 25... f6 {[%clk 0:01:28.3]} 26. Bg3 {[%clk 0:01:11.6]}
26... Nc5 {[%clk 0:01:13.6]} 27. Rb1 {[%clk 0:01:04.3]} 27... Ne4 {[%clk
0:00:59.8]} 28. Rb7 {[%clk 0:01:02.4]} 28... Bc6 {[%clk 0:00:55.2]} 29. Re7
{[%clk 0:00:51.6]} 29... Be8 {[%clk 0:00:33.8]} 30. c4 {[%clk 0:00:42.8]} 30...
Bf7 {[%clk 0:00:31.4]} 31. cxd5 {[%clk 0:00:43.2]} 31... Nxg3 {[%clk 0:00:29.2]}
32. Rxg3 {[%clk 0:00:43.2]} 32... g5 {[%clk 0:00:26.1]} 33. hxg5 {[%clk
0:00:42.5]} 33... hxg5 {[%clk 0:00:26.6]} 34. Nf5 {[%clk 0:00:42.7]} 34... Kf8
{[%clk 0:00:17.2]} 35. d6 {[%clk 0:00:40.2]} 35... Rc5 {[%clk 0:00:14.4]} 36. d7
{[%clk 0:00:32.9]} 36... Ra8 {[%clk 0:00:12.9]} 37. Rd3 {[%clk 0:00:18.5]} 37...
Rxf5 {[%clk 0:00:13.1]} 38. Rxf7+ {[%clk 0:00:19.7]} 38... Kxf7 {[%clk
0:00:13.9]} 39. d8=Q {[%clk 0:00:21.2]} 39... Rxd8 {[%clk 0:00:15.4]} 40. Rxd8
{[%clk 0:00:22.5]} 40... Ra5 {[%clk 0:00:16.9]} 41. Rd3 {[%clk 0:00:24.1]} 41...
Ke6 {[%clk 0:00:18.2]} 42. Kf1 {[%clk 0:00:25.6]} 42... f5 {[%clk 0:00:18.8]}
43. Ke2 {[%clk 0:00:26.9]} 43... f4 {[%clk 0:00:19.7]} 44. Kf3 {[%clk
0:00:27.3]} 44... Kf5 {[%clk 0:00:20.6]} 45. g4+ {[%clk 0:00:28.8]} 45... fxg3
{[%clk 0:00:21.4]} 46. fxg3 {[%clk 0:00:30.3]} 46... Ra4 {[%clk 0:00:20.9]} 47.
Rb3 {[%clk 0:00:29.9]} 47... Ke5 {[%clk 0:00:19.6]} 48. Rb5+ {[%clk 0:00:28]}
48... Kf6 {[%clk 0:00:19.7]} 49. Rb3 {[%clk 0:00:28.4]} 49... Ke5 {[%clk
0:00:20.6]} 50. Ke3 {[%clk 0:00:29.3]} 50... Kf5 {[%clk 0:00:21.3]} 51. Kf3
{[%clk 0:00:29.1]} 51... Ke5 {[%clk 0:00:21.9]} 1/2-1/2

[Event "*** Titled Tuesday 3|2 Blitz"]
[Site "Chess.com"]
[Date "2016.10.04"]
[Round "2"]
[White "HovmoellerHest"]
[Black "GianmarcoVaR"]
[Result "0-1"]
[WhiteElo "2322"]
[BlackElo "2390"]
[TimeControl "180+2"]
[EndTime "11:23:23 PDT"]
[Termination "GianmarcoVaR won by resignation"]

1. d4 {[%clk 0:03:02]} 1... Nf6 {[%clk 0:02:59.6]} 2. c4 {[%clk 0:02:59.1]} 2...
e6 {[%clk 0:03:00.7]} 3. Nc3 {[%clk 0:03:00.2]} 3... Bb4 {[%clk 0:03:01.6]} 4.
Qc2 {[%clk 0:03:01.2]} 4... O-O {[%clk 0:02:59]} 5. a3 {[%clk 0:03:00.2]} 5...
Bxc3+ {[%clk 0:02:58.1]} 6. Qxc3 {[%clk 0:03:01.7]} 6... d6 {[%clk 0:02:59.3]}
7. Bg5 {[%clk 0:02:57.5]} 7... h6 {[%clk 0:02:57.4]} 8. Bh4 {[%clk 0:02:56.2]}
8... a5 {[%clk 0:02:41.1]} 9. e3 {[%clk 0:02:52.4]} 9... b6 {[%clk 0:02:37.7]}
10. Bd3 {[%clk 0:02:50.9]} 10... Bb7 {[%clk 0:02:38.6]} 11. f3 {[%clk
0:02:42.8]} 11... a4 {[%clk 0:02:23.5]} 12. Ne2 {[%clk 0:02:41]} 12... Nbd7
{[%clk 0:01:56.3]} 13. Bc2 {[%clk 0:02:38.2]} 13... c5 {[%clk 0:01:53.6]} 14.
Rd1 {[%clk 0:02:22.5]} 14... Qc7 {[%clk 0:01:43.7]} 15. e4 {[%clk 0:01:42.3]}
15... Rfc8 {[%clk 0:01:34.1]} 16. d5 {[%clk 0:01:39.3]} 16... e5 {[%clk
0:01:20.4]} 17. O-O {[%clk 0:01:31]} 17... Re8 {[%clk 0:01:21.3]} 18. Qd3 {[%clk
0:01:28.7]} 18... g5 {[%clk 0:01:20.3]} 19. Bf2 {[%clk 0:01:28.1]} 19... Nf8
{[%clk 0:01:19.5]} 20. Nc3 {[%clk 0:01:24.3]} 20... Qd7 {[%clk 0:01:20.9]} 21.
Rde1 {[%clk 0:01:22.5]} 21... Ng6 {[%clk 0:01:21.4]} 22. Qd1 {[%clk 0:01:20.1]}
22... Nf4 {[%clk 0:01:21.1]} 23. Bxa4 {[%clk 0:01:15.2]} 23... Qe7 {[%clk
0:01:12.8]} 24. Bxe8 {[%clk 0:01:15.6]} 24... Qxe8 {[%clk 0:01:14.3]} 25. Ne2
{[%clk 0:01:08.3]} 25... b5 {[%clk 0:01:09.4]} 26. cxb5 {[%clk 0:01:00.8]} 26...
Qxb5 {[%clk 0:01:08.3]} 27. Nxf4 {[%clk 0:01:01.8]} 27... exf4 {[%clk
0:01:07.6]} 28. Qd2 {[%clk 0:00:58.1]} 28... Nd7 {[%clk 0:01:05.7]} 29. Rc1
{[%clk 0:00:56.6]} 29... Ne5 {[%clk 0:01:06.8]} 30. Rfd1 {[%clk 0:00:53.9]}
30... Ra4 {[%clk 0:00:39.7]} 31. Qc3 {[%clk 0:00:45.5]} 31... Rc4 {[%clk
0:00:32.1]} 32. Qd2 {[%clk 0:00:46.1]} 32... Ra4 {[%clk 0:00:33.3]} 33. Rc3
{[%clk 0:00:42.1]} 33... Ba6 {[%clk 0:00:33.6]} 34. Qc2 {[%clk 0:00:36.8]} 34...
Kg7 {[%clk 0:00:30.9]} 35. Rb3 {[%clk 0:00:36.3]} 35... Qd7 {[%clk 0:00:29.2]}
36. Rb6 {[%clk 0:00:36.2]} 36... Rc4 {[%clk 0:00:21.4]} 37. Qb3 {[%clk
0:00:35.8]} 37... Ra4 {[%clk 0:00:17.8]} 38. Be1 {[%clk 0:00:34.3]} 38... f6
{[%clk 0:00:13.1]} 39. Rb8 {[%clk 0:00:33.8]} 39... c4 {[%clk 0:00:10.1]} 40.
Qb6 {[%clk 0:00:34.9]} 40... g4 {[%clk 0:00:04.7]} 41. Rd8 {[%clk 0:00:34.7]}
41... Qf7 {[%clk 0:00:05.1]} 42. Ra8 {[%clk 0:00:27.5]} 42... Kg6 {[%clk
0:00:02.2]} 43. Rxa6 {[%clk 0:00:24.1]} 43... Rxa6 {[%clk 0:00:03.5]} 44. Qxa6
{[%clk 0:00:25.7]} 44... gxf3 {[%clk 0:00:05.1]} 45. Rd2 {[%clk 0:00:17.1]}
45... Kh5 {[%clk 0:00:05.1]} 46. Qb6 {[%clk 0:00:16.1]} 46... Qg6 {[%clk
0:00:05.4]} 47. Qf2 {[%clk 0:00:15.3]} 47... fxg2 {[%clk 0:00:03.6]} 48. Qxg2
{[%clk 0:00:12.7]} 48... Nf3+ {[%clk 0:00:04.3]} 49. Kh1 {[%clk 0:00:14.1]}
49... Nxe1 {[%clk 0:00:04.6]} 50. Qh3+ {[%clk 0:00:09.2]} 50... Kg5 {[%clk
0:00:06]} 51. Rd1 {[%clk 0:00:10.5]} 51... Qxe4+ {[%clk 0:00:03.7]} 52. Kg1
{[%clk 0:00:09.7]} 52... Nf3+ {[%clk 0:00:05.3]} 53. Kf2 {[%clk 0:00:10.7]}
53... Qe3+ {[%clk 0:00:06.8]} 54. Kf1 {[%clk 0:00:10.2]} 54... Qg1+ {[%clk
0:00:07.3]} 55. Ke2 {[%clk 0:00:11.2]} 55... Qe3+ {[%clk 0:00:08.6]} 56. Kf1
{[%clk 0:00:12.6]} 56... Nd2+ {[%clk 0:00:08.9]} 57. Rxd2 {[%clk 0:00:11.3]}
57... Qxh3+ {[%clk 0:00:09.8]} 58. Rg2+ {[%clk 0:00:11.7]} 58... Kf5 {[%clk
0:00:10.1]} 59. Kg1 {[%clk 0:00:13]} 59... Qe3+ {[%clk 0:00:10.8]} 60. Rf2
{[%clk 0:00:14.4]} 60... f3 {[%clk 0:00:12.2]} 0-1

[Event "*** Titled Tuesday 3|2 Blitz"]
[Site "Chess.com"]
[Date "2016.10.04"]
[Round "2"]
[White "DavitZarkua"]
[Black "VSERGUEI"]
[Result "1/2-1/2"]
[WhiteElo "2522"]
[BlackElo "2493"]
[TimeControl "180+2"]
[EndTime "11:23:55 PDT"]
[Termination "Game drawn - insufficient material"]

1. Nf3 {[%clk 0:03:02]} 1... d5 {[%clk 0:03:00.4]} 2. d4 {[%clk 0:03:01.2]} 2...
Nf6 {[%clk 0:03:00.3]} 3. Nbd2 {[%clk 0:03:00.6]} 3... Bf5 {[%clk 0:02:58.7]} 4.
e3 {[%clk 0:03:00.5]} 4... e6 {[%clk 0:02:58.9]} 5. Bd3 {[%clk 0:03:00.9]} 5...
Bg6 {[%clk 0:02:58.4]} 6. O-O {[%clk 0:03:00.3]} 6... Nbd7 {[%clk 0:02:58.4]} 7.
Ne5 {[%clk 0:02:59.4]} 7... Nxe5 {[%clk 0:02:57.9]} 8. dxe5 {[%clk 0:03:00]}
8... Nd7 {[%clk 0:02:57.7]} 9. Nf3 {[%clk 0:02:54.2]} 9... Be7 {[%clk
0:02:51.1]} 10. b3 {[%clk 0:02:53.8]} 10... O-O {[%clk 0:02:50.9]} 11. Bb2
{[%clk 0:02:55.1]} 11... a5 {[%clk 0:02:50.2]} 12. a3 {[%clk 0:02:44.7]} 12...
c6 {[%clk 0:02:46.6]} 13. Re1 {[%clk 0:02:42.1]} 13... Qc7 {[%clk 0:02:46.6]}
14. e4 {[%clk 0:02:40.1]} 14... dxe4 {[%clk 0:02:42.8]} 15. Bxe4 {[%clk
0:02:42]} 15... Rfd8 {[%clk 0:02:43.2]} 16. Bxg6 {[%clk 0:02:38.5]} 16... hxg6
{[%clk 0:02:42.9]} 17. Qe2 {[%clk 0:02:39.9]} 17... Nc5 {[%clk 0:02:39.7]} 18.
Rad1 {[%clk 0:02:38.9]} 18... Rxd1 {[%clk 0:02:39.8]} 19. Rxd1 {[%clk
0:02:40.8]} 19... Rd8 {[%clk 0:02:40.5]} 20. Rxd8+ {[%clk 0:02:40.1]} 20... Qxd8
{[%clk 0:02:40.6]} 21. Qd2 {[%clk 0:02:29.3]} 21... Qd5 {[%clk 0:02:34.7]} 22.
Qxd5 {[%clk 0:02:28.5]} 22... exd5 {[%clk 0:02:35]} 23. Kf1 {[%clk 0:02:28.4]}
23... Ne6 {[%clk 0:02:26.1]} 24. g3 {[%clk 0:02:24.7]} 24... b5 {[%clk
0:02:24.5]} 25. Ke2 {[%clk 0:02:23.9]} 25... g5 {[%clk 0:02:17.3]} 26. h3 {[%clk
0:02:23.5]} 26... Kf8 {[%clk 0:02:17.8]} 27. Kd3 {[%clk 0:02:11.6]} 27... Bc5
{[%clk 0:02:01.1]} 28. Ke2 {[%clk 0:02:05.3]} 28... Ke8 {[%clk 0:02:01]} 29. Bc3
{[%clk 0:01:59.2]} 29... Bxa3 {[%clk 0:01:48.8]} 30. Bxa5 {[%clk 0:01:59.3]}
30... b4 {[%clk 0:01:49.3]} 31. Bb6 {[%clk 0:01:32]} 31... c5 {[%clk 0:01:48.5]}
32. Ba7 {[%clk 0:01:33.4]} 32... Kd7 {[%clk 0:01:44.8]} 33. Bb8 {[%clk
0:01:33.7]} 33... Bb2 {[%clk 0:01:43.8]} 34. h4 {[%clk 0:01:25.5]} 34... gxh4
{[%clk 0:01:37.2]} 35. Nxh4 {[%clk 0:01:27.4]} 35... c4 {[%clk 0:01:12.6]} 36.
Nf3 {[%clk 0:01:10.3]} 36... Kc6 {[%clk 0:01:05.4]} 37. Ba7 {[%clk 0:01:10.3]}
37... Kb5 {[%clk 0:00:54.8]} 38. Ke3 {[%clk 0:01:06.3]} 38... Bc1+ {[%clk
0:00:40.1]} 39. Ke2 {[%clk 0:01:06.9]} 39... Bb2 {[%clk 0:00:37]} 40. Ke3 {[%clk
0:01:07.2]} 40... Bc1+ {[%clk 0:00:14.2]} 41. Ke2 {[%clk 0:01:07.2]} 41... Bb2
{[%clk 0:00:15.4]} 42. Be3 {[%clk 0:00:36]} 42... d4 {[%clk 0:00:15.7]} 43. Bf4
{[%clk 0:00:25.2]} 43... d3+ {[%clk 0:00:15.4]} 44. Kd1 {[%clk 0:00:22.1]} 44...
Bc3 {[%clk 0:00:16]} 45. Be3 {[%clk 0:00:12.6]} 45... g6 {[%clk 0:00:13.5]} 46.
g4 {[%clk 0:00:12.7]} 46... Ba1 {[%clk 0:00:13.3]} 47. Nd2 {[%clk 0:00:12.1]}
47... dxc2+ {[%clk 0:00:11.7]} 48. Kxc2 {[%clk 0:00:12.4]} 48... cxb3+ {[%clk
0:00:13.4]} 49. Nxb3 {[%clk 0:00:13.6]} 49... Bxe5 {[%clk 0:00:15.1]} 50. Kd3
{[%clk 0:00:14.7]} 50... Ka4 {[%clk 0:00:13.6]} 51. Nd2 {[%clk 0:00:14.4]} 51...
b3 {[%clk 0:00:13.4]} 52. Nc4 {[%clk 0:00:14.8]} 52... Bg7 {[%clk 0:00:13]} 53.
f4 {[%clk 0:00:16.2]} 53... Nc7 {[%clk 0:00:11.7]} 54. f5 {[%clk 0:00:13.7]}
54... gxf5 {[%clk 0:00:12.2]} 55. gxf5 {[%clk 0:00:13.2]} 55... Kb4 {[%clk
0:00:12.8]} 56. Bd2+ {[%clk 0:00:13.7]} 56... Kc5 {[%clk 0:00:12.5]} 57. Be3+
{[%clk 0:00:14.6]} 57... Kd5 {[%clk 0:00:12.4]} 58. Nd2 {[%clk 0:00:15]} 58...
b2 {[%clk 0:00:13.1]} 59. Kc2 {[%clk 0:00:16.1]} 59... Nb5 {[%clk 0:00:12.3]}
60. Nb1 {[%clk 0:00:16.9]} 60... Ke4 {[%clk 0:00:12.5]} 61. Bd2 {[%clk
0:00:17.3]} 61... Kxf5 {[%clk 0:00:13.5]} 62. Bb4 {[%clk 0:00:18.1]} 62... Ke4
{[%clk 0:00:14.2]} 63. Kb3 {[%clk 0:00:19.7]} 63... f5 {[%clk 0:00:14.8]} 64.
Kc4 {[%clk 0:00:21.6]} 64... Nd6+ {[%clk 0:00:15.2]} 65. Bxd6 {[%clk 0:00:21.8]}
65... f4 {[%clk 0:00:16.5]} 66. Bxf4 {[%clk 0:00:22.1]} 66... Kxf4 {[%clk
0:00:17.4]} 67. Kd3 {[%clk 0:00:23.6]} 67... Kf3 {[%clk 0:00:18.3]} 68. Kc2
{[%clk 0:00:24.6]} 68... Ke2 {[%clk 0:00:19.6]} 69. Na3 {[%clk 0:00:25.5]} 69...
Ke3 {[%clk 0:00:18.4]} 70. Nc4+ {[%clk 0:00:25.6]} 70... Ke2 {[%clk 0:00:19.8]}
71. Nxb2 {[%clk 0:00:26.8]} 71... Bxb2 {[%clk 0:00:21.6]} 1/2-1/2